[Event "Titled Tuesday Blitz August 1 Early 2023"]
[White "Eynullayev, Altay"]
[Black "Spichkin, Alexander"]
[WhiteFideId "13413562"]
[BlackFideId "4144074"]
[WhiteElo "2522"]
[BlackElo "2390"]
[Result "1-0"]
[Round "8"]
[TimeControl "180+1"]
[Date "2023.08.01"]
[WhiteClock "0:00:34"]
[BlackClock "0:00:20"]
[Board "131"]

1. e4 {[%clk 0:03:00]}  e5 {[%clk 0:01:43]} 2. Nf3 {[%clk 0:03:00]}  d5 {[%clk 0:01:43]} 3. Nxe5 {[%clk 0:02:59]}  Bd6 {[%clk 0:01:42]} 4. d4 {[%clk 0:02:58]}  dxe4 {[%clk 0:01:42]} 5. Bc4 {[%clk 0:02:58]}  Bxe5 {[%clk 0:01:42]} 6. Qh5 {[%clk 0:02:58]}  Qe7 {[%clk 0:01:41]} 7. dxe5 {[%clk 0:02:58]}  Nc6 {[%clk 0:01:40]} 8. Bf4 {[%clk 0:02:46]}  Be6 {[%clk 0:01:41]} 9. Bxe6 {[%clk 0:02:42]}  Qxe6 {[%clk 0:01:41]} 10. Nc3 {[%clk 0:02:40]}  O-O-O {[%clk 0:01:39]} 11. O-O {[%clk 0:02:37]}  f5 {[%clk 0:01:32]} 12. exf6 {[%clk 0:02:26]}  Nxf6 {[%clk 0:01:32]} 13. Qc5 {[%clk 0:02:10]}  Nd5 {[%clk 0:01:21]} 14. Nxd5 {[%clk 0:01:47]}  Rxd5 {[%clk 0:01:21]} 15. Qc3 {[%clk 0:01:48]}  Rf8 {[%clk 0:01:16]} 16. Bg3 {[%clk 0:01:43]}  g5 {[%clk 0:01:15]} 17. Rfe1 {[%clk 0:01:39]}  h5 {[%clk 0:01:15]} 18. Qg7 {[%clk 0:01:30]}  Rf7 {[%clk 0:01:00]} 19. Qh8+ {[%clk 0:01:26]}  Rd8 {[%clk 0:00:58]} 20. Qxh5 {[%clk 0:01:24]}  Qf5 {[%clk 0:00:57]} 21. Rxe4 {[%clk 0:00:58]}  Nd4 {[%clk 0:00:53]} 22. Qg4 {[%clk 0:00:51]}  Qxg4 {[%clk 0:00:46]} 23. Rxg4 {[%clk 0:00:51]}  Nxc2 {[%clk 0:00:42]} 24. Rc1 {[%clk 0:00:50]}  Nb4 {[%clk 0:00:41]} 25. Rxb4 {[%clk 0:00:49]}  Rd5 {[%clk 0:00:37]} 26. Rbc4 {[%clk 0:00:47]}  c6 {[%clk 0:00:37]} 27. h3 {[%clk 0:00:47]}  Rf6 {[%clk 0:00:34]} 28. Rc5 {[%clk 0:00:47]}  Rd2 {[%clk 0:00:34]} 29. R1c2 {[%clk 0:00:45]}  Rd1+ {[%clk 0:00:34]} 30. Kh2 {[%clk 0:00:46]}  Rg6 {[%clk 0:00:33]} 31. Re2 {[%clk 0:00:43]}  g4 {[%clk 0:00:32]} 32. h4 {[%clk 0:00:41]}  b6 {[%clk 0:00:30]} 33. Rg5 {[%clk 0:00:41]}  Rh6 {[%clk 0:00:24]} 34. Rg7 {[%clk 0:00:36]}  Rd7 {[%clk 0:00:20]} 35. Re8+ {[%clk 0:00:34]} 1-0


[Site "https://www.chess.com"]

[Event "Titled Tuesday Blitz August 1 Early 2023"]
[White "Mikhalsky, Vladimir"]
[Black "Ordekalog"]
[WhiteFideId "14144352"]
[WhiteElo "2390"]
[BlackElo "2519"]
[Result "0-1"]
[Round "8"]
[TimeControl "180+1"]
[Date "2023.08.01"]
[WhiteClock "0:00:00"]
[BlackClock "0:00:08"]
[Board "132"]

1. d4 {[%clk 0:02:40]}  d5 {[%clk 0:02:58]} 2. c4 {[%clk 0:02:37]}  e6 {[%clk 0:02:58]} 3. Nf3 {[%clk 0:02:33]}  c5 {[%clk 0:02:57]} 4. cxd5 {[%clk 0:02:32]}  exd5 {[%clk 0:02:57]} 5. g3 {[%clk 0:02:32]}  Nc6 {[%clk 0:02:56]} 6. Bg2 {[%clk 0:02:32]}  Nf6 {[%clk 0:02:56]} 7. O-O {[%clk 0:02:32]}  Be7 {[%clk 0:02:57]} 8. Nc3 {[%clk 0:02:32]}  O-O {[%clk 0:02:57]} 9. dxc5 {[%clk 0:02:28]}  Bxc5 {[%clk 0:02:56]} 10. b3 {[%clk 0:02:26]}  a6 {[%clk 0:02:55]} 11. Bb2 {[%clk 0:02:26]}  Ba7 {[%clk 0:02:53]} 12. Rc1 {[%clk 0:02:25]}  Re8 {[%clk 0:02:51]} 13. e3 {[%clk 0:02:24]}  Bg4 {[%clk 0:02:48]} 14. h3 {[%clk 0:02:23]}  Be6 {[%clk 0:02:47]} 15. Na4 {[%clk 0:02:20]}  Ne4 {[%clk 0:02:44]} 16. Nd4 {[%clk 0:02:16]}  Bd7 {[%clk 0:02:30]} 17. Nxc6 {[%clk 0:02:01]}  bxc6 {[%clk 0:02:30]} 18. Ba3 {[%clk 0:01:52]}  Qg5 {[%clk 0:01:54]} 19. Nc5 {[%clk 0:01:44]}  Bxc5 {[%clk 0:01:48]} 20. Bxc5 {[%clk 0:01:44]}  Qh6 {[%clk 0:01:26]} 21. h4 {[%clk 0:01:18]}  Nxc5 {[%clk 0:01:19]} 22. Rxc5 {[%clk 0:01:17]}  Rxe3 {[%clk 0:01:19]} 23. Rxd5 {[%clk 0:01:10]}  cxd5 {[%clk 0:01:12]} 24. fxe3 {[%clk 0:01:10]}  Qxe3+ {[%clk 0:01:11]} 25. Kh2 {[%clk 0:01:09]}  Be6 {[%clk 0:01:10]} 26. Re1 {[%clk 0:01:02]}  Qc5 {[%clk 0:01:07]} 27. Re5 {[%clk 0:00:54]}  Rd8 {[%clk 0:01:03]} 28. Qe2 {[%clk 0:00:52]}  Qd6 {[%clk 0:01:00]} 29. Rg5 {[%clk 0:00:37]}  h6 {[%clk 0:00:58]} 30. Rh5 {[%clk 0:00:32]}  d4 {[%clk 0:00:53]} 31. Qd3 {[%clk 0:00:28]}  Qc7 {[%clk 0:00:23]} 32. Qd2 {[%clk 0:00:19]}  d3 {[%clk 0:00:21]} 33. Ra5 {[%clk 0:00:10]}  Qc2 {[%clk 0:00:18]} 34. Qxc2 {[%clk 0:00:10]}  dxc2 {[%clk 0:00:18]} 35. Rc5 {[%clk 0:00:11]}  Bf5 {[%clk 0:00:18]} 36. g4 {[%clk 0:00:07]}  Rd1 {[%clk 0:00:17]} 37. gxf5 {[%clk 0:00:06]}  c1=Q {[%clk 0:00:17]} 38. Rxc1 {[%clk 0:00:06]}  Rxc1 {[%clk 0:00:18]} 39. Kg3 {[%clk 0:00:06]}  a5 {[%clk 0:00:15]} 40. Bd5 {[%clk 0:00:05]}  Rc5 {[%clk 0:00:13]} 41. Bc4 {[%clk 0:00:04]}  Rxf5 {[%clk 0:00:12]} 42. Kg4 {[%clk 0:00:04]}  Rf2 {[%clk 0:00:12]} 43. a3 {[%clk 0:00:03]}  Kf8 {[%clk 0:00:10]} 44. Kg3 {[%clk 0:00:03]}  Rb2 {[%clk 0:00:09]} 45. a4 {[%clk 0:00:02]}  Ke7 {[%clk 0:00:09]} 46. Kf4 {[%clk 0:00:03]}  Kf6 {[%clk 0:00:09]} 47. Kg4 {[%clk 0:00:03]}  Rg2+ {[%clk 0:00:09]} 48. Kf3 {[%clk 0:00:03]}  Rh2 {[%clk 0:00:09]} 49. Kg3 {[%clk 0:00:03]}  Rh1 {[%clk 0:00:08]} 50. Kg4 {[%clk 0:00:03]}  Rg1+ {[%clk 0:00:08]} 51. Kf4 {[%clk 0:00:02]}  Rd1 {[%clk 0:00:05]} 52. Kg4 {[%clk 0:00:02]}  Rd4+ {[%clk 0:00:05]} 53. Kg3 {[%clk 0:00:02]}  g5 {[%clk 0:00:04]} 54. hxg5+ {[%clk 0:00:02]}  hxg5 {[%clk 0:00:05]} 55. Kf3 {[%clk 0:00:03]}  Kg6 {[%clk 0:00:05]} 56. Kg3 {[%clk 0:00:03]}  f5 {[%clk 0:00:05]} 57. Ba6 {[%clk 0:00:03]}  Kf6 {[%clk 0:00:05]} 58. Kf3 {[%clk 0:00:03]}  Ke5 {[%clk 0:00:06]} 59. Bc8 {[%clk 0:00:02]}  Rb4 {[%clk 0:00:06]} 60. Ba6 {[%clk 0:00:02]}  Rxb3+ {[%clk 0:00:06]} 61. Ke2 {[%clk 0:00:02]}  Rb4 {[%clk 0:00:07]} 62. Kd2 {[%clk 0:00:01]}  Rxa4 {[%clk 0:00:06]} 63. Kc3 {[%clk 0:00:02]}  Rb4 {[%clk 0:00:07]} 64. Kd3 {[%clk 0:00:02]}  g4 {[%clk 0:00:08]} 65. Bc8 {[%clk 0:00:01]}  Rb6 {[%clk 0:00:07]} 66. Ke2 {[%clk 0:00:02]}  Rc6 {[%clk 0:00:07]} 67. Bb7 {[%clk 0:00:02]}  Rc3 {[%clk 0:00:07]} 68. Kf2 {[%clk 0:00:02]}  Ra3 {[%clk 0:00:08]} 69. Bc6 {[%clk 0:00:02]}  f4 {[%clk 0:00:08]} 70. Kg2 {[%clk 0:00:01]}  Rc3 {[%clk 0:00:08]} 71. Bb7 {[%clk 0:00:00]}  Rc2+ {[%clk 0:00:08]} 0-1


[Site "https://www.chess.com"]

[Event "Titled Tuesday Blitz August 1 Early 2023"]
[White "Buscar, Michael"]
[Black "Papayan, Oleg"]
[WhiteFideId "2603616"]
[BlackFideId "4193911"]
[WhiteElo "2386"]
[BlackElo "2491"]
[Result "0-1"]
[Round "8"]
[TimeControl "180+1"]
[Date "2023.08.01"]
[WhiteClock "0:00:09"]
[BlackClock "0:00:09"]
[Board "135"]

1. d4 {[%clk 0:02:52]}  Nf6 {[%clk 0:02:59]} 2. c4 {[%clk 0:02:52]}  e6 {[%clk 0:02:59]} 3. Nc3 {[%clk 0:02:51]}  Bb4 {[%clk 0:03:00]} 4. e3 {[%clk 0:02:49]}  O-O {[%clk 0:02:59]} 5. Bd3 {[%clk 0:02:50]}  d5 {[%clk 0:03:00]} 6. Nf3 {[%clk 0:02:50]}  c5 {[%clk 0:02:56]} 7. O-O {[%clk 0:02:49]}  dxc4 {[%clk 0:02:48]} 8. Bxc4 {[%clk 0:02:49]}  Bxc3 {[%clk 0:02:49]} 9. bxc3 {[%clk 0:02:48]}  Qc7 {[%clk 0:02:49]} 10. Qe2 {[%clk 0:02:48]}  b6 {[%clk 0:02:47]} 11. Bb2 {[%clk 0:02:39]}  Bb7 {[%clk 0:02:45]} 12. Rac1 {[%clk 0:02:39]}  Nbd7 {[%clk 0:02:45]} 13. Rfd1 {[%clk 0:02:37]}  Rac8 {[%clk 0:02:44]} 14. Bd3 {[%clk 0:02:35]}  c4 {[%clk 0:02:40]} 15. Bb1 {[%clk 0:02:34]}  Be4 {[%clk 0:02:39]} 16. Ba3 {[%clk 0:02:29]}  Rfe8 {[%clk 0:02:35]} 17. Ng5 {[%clk 0:02:21]}  Bxb1 {[%clk 0:02:30]} 18. Rxb1 {[%clk 0:02:22]}  h6 {[%clk 0:02:27]} 19. Nf3 {[%clk 0:02:21]}  Ne4 {[%clk 0:02:20]} 20. Qc2 {[%clk 0:02:19]}  f5 {[%clk 0:02:12]} 21. Nd2 {[%clk 0:02:16]}  Ndf6 {[%clk 0:02:02]} 22. f3 {[%clk 0:02:11]}  Nxd2 {[%clk 0:01:54]} 23. Rxd2 {[%clk 0:02:11]}  Qc6 {[%clk 0:01:46]} 24. Rb4 {[%clk 0:02:06]}  a5 {[%clk 0:01:41]} 25. Rb1 {[%clk 0:02:04]}  b5 {[%clk 0:01:36]} 26. Re1 {[%clk 0:01:42]}  Rb8 {[%clk 0:01:28]} 27. Bb2 {[%clk 0:01:26]}  b4 {[%clk 0:01:23]} 28. e4 {[%clk 0:01:26]}  b3 {[%clk 0:01:22]} 29. axb3 {[%clk 0:01:24]}  Rxb3 {[%clk 0:00:49]} 30. exf5 {[%clk 0:01:14]}  exf5 {[%clk 0:00:49]} 31. Rxe8+ {[%clk 0:01:09]}  Qxe8 {[%clk 0:00:50]} 32. Re2 {[%clk 0:01:07]}  Qb5 {[%clk 0:00:49]} 33. Bc1 {[%clk 0:01:04]}  Rb1 {[%clk 0:00:41]} 34. Re5 {[%clk 0:01:02]}  Qb3 {[%clk 0:00:41]} 35. Qd2 {[%clk 0:00:26]}  a4 {[%clk 0:00:41]} 36. Rxf5 {[%clk 0:00:20]}  Qa3 {[%clk 0:00:34]} 37. Ra5 {[%clk 0:00:14]}  Rxc1+ {[%clk 0:00:26]} 38. Kf2 {[%clk 0:00:14]}  Qa1 {[%clk 0:00:21]} 39. Ra8+ {[%clk 0:00:13]}  Kh7 {[%clk 0:00:21]} 40. Qf4 {[%clk 0:00:13]}  Qb1 {[%clk 0:00:10]} 41. Ra7 {[%clk 0:00:12]}  Qc2+ {[%clk 0:00:09]} 42. Kg3 {[%clk 0:00:12]}  Nh5+ {[%clk 0:00:09]} 43. Kg4 {[%clk 0:00:09]}  Nxf4 {[%clk 0:00:09]} 0-1


[Site "https://www.chess.com"]

[Event "Titled Tuesday Blitz August 1 Early 2023"]
[White "Kaplan, Avi Harrison"]
[Black "Llanos, Guillermo"]
[WhiteFideId "30934559"]
[BlackFideId "100358"]
[WhiteElo "2490"]
[BlackElo "2383"]
[Result "1/2-1/2"]
[Round "8"]
[TimeControl "180+1"]
[Date "2023.08.01"]
[WhiteClock "0:00:10"]
[BlackClock "0:00:08"]
[Board "138"]

1. b3 {[%clk 0:02:43]}  b6 {[%clk 0:02:56]} 2. Bb2 {[%clk 0:02:44]}  Bb7 {[%clk 0:02:56]} 3. Nf3 {[%clk 0:02:42]}  Nf6 {[%clk 0:02:53]} 4. g3 {[%clk 0:02:42]}  g6 {[%clk 0:02:53]} 5. Bg2 {[%clk 0:02:39]}  Bg7 {[%clk 0:02:53]} 6. O-O {[%clk 0:02:38]}  O-O {[%clk 0:02:53]} 7. c4 {[%clk 0:02:38]}  c5 {[%clk 0:02:50]} 8. d4 {[%clk 0:02:37]}  cxd4 {[%clk 0:02:50]} 9. Qxd4 {[%clk 0:02:36]}  Nc6 {[%clk 0:02:48]} 10. Qc3 {[%clk 0:02:30]}  Rc8 {[%clk 0:02:38]} 11. Rd1 {[%clk 0:02:30]}  d6 {[%clk 0:02:21]} 12. Qe1 {[%clk 0:02:28]}  Re8 {[%clk 0:01:58]} 13. Nc3 {[%clk 0:02:28]}  Nb4 {[%clk 0:01:54]} 14. Rac1 {[%clk 0:02:23]}  Na6 {[%clk 0:01:38]} 15. Nd5 {[%clk 0:02:10]}  Nxd5 {[%clk 0:01:32]} 16. Bxg7 {[%clk 0:02:09]}  Ne3 {[%clk 0:01:30]} 17. Ba1 {[%clk 0:01:50]}  Nxd1 {[%clk 0:01:29]} 18. Qxd1 {[%clk 0:01:51]}  e5 {[%clk 0:01:21]} 19. Qd2 {[%clk 0:01:44]}  Bxf3 {[%clk 0:01:18]} 20. exf3 {[%clk 0:01:38]}  Nc5 {[%clk 0:01:18]} 21. f4 {[%clk 0:01:37]}  f6 {[%clk 0:01:17]} 22. Bd5+ {[%clk 0:01:35]}  Kg7 {[%clk 0:01:16]} 23. fxe5 {[%clk 0:01:33]}  dxe5 {[%clk 0:01:15]} 24. b4 {[%clk 0:01:29]}  Ne6 {[%clk 0:01:12]} 25. Qe3 {[%clk 0:01:25]}  Qd6 {[%clk 0:00:58]} 26. a3 {[%clk 0:01:17]}  a5 {[%clk 0:00:57]} 27. f4 {[%clk 0:01:10]}  Nd4 {[%clk 0:00:52]} 28. fxe5 {[%clk 0:01:08]}  fxe5 {[%clk 0:00:51]} 29. Rd1 {[%clk 0:01:01]}  Nc2 {[%clk 0:00:41]} 30. Qe2 {[%clk 0:00:48]}  Nxa1 {[%clk 0:00:40]} 31. Bb7 {[%clk 0:00:48]}  Qe6 {[%clk 0:00:23]} 32. Bxc8 {[%clk 0:00:46]}  Rxc8 {[%clk 0:00:23]} 33. Rxa1 {[%clk 0:00:46]}  Rxc4 {[%clk 0:00:22]} 34. bxa5 {[%clk 0:00:40]}  bxa5 {[%clk 0:00:22]} 35. Rb1 {[%clk 0:00:41]}  Rc7 {[%clk 0:00:20]} 36. Qe4 {[%clk 0:00:35]}  Re7 {[%clk 0:00:19]} 37. Rb5 {[%clk 0:00:34]}  a4 {[%clk 0:00:19]} 38. Qxa4 {[%clk 0:00:33]}  e4 {[%clk 0:00:19]} 39. Qd4+ {[%clk 0:00:32]}  Qf6 {[%clk 0:00:19]} 40. Qxf6+ {[%clk 0:00:32]}  Kxf6 {[%clk 0:00:19]} 41. Kf2 {[%clk 0:00:32]}  Ra7 {[%clk 0:00:18]} 42. Rb3 {[%clk 0:00:32]}  Ra4 {[%clk 0:00:18]} 43. Ke3 {[%clk 0:00:32]}  Ke5 {[%clk 0:00:18]} 44. h4 {[%clk 0:00:32]}  h5 {[%clk 0:00:18]} 45. Ke2 {[%clk 0:00:28]}  Kf5 {[%clk 0:00:17]} 46. Kf2 {[%clk 0:00:23]}  Kg4 {[%clk 0:00:17]} 47. Rb4 {[%clk 0:00:16]}  Rxa3 {[%clk 0:00:16]} 48. Rxe4+ {[%clk 0:00:16]}  Kf5 {[%clk 0:00:16]} 49. Rf4+ {[%clk 0:00:16]}  Ke5 {[%clk 0:00:16]} 50. Rb4 {[%clk 0:00:16]}  Kf5 {[%clk 0:00:15]} 51. Kg2 {[%clk 0:00:14]}  Ra2+ {[%clk 0:00:14]} 52. Kh3 {[%clk 0:00:15]}  Rd2 {[%clk 0:00:14]} 53. Rb5+ {[%clk 0:00:14]}  Kf6 {[%clk 0:00:14]} 54. Rb6+ {[%clk 0:00:14]}  Kf5 {[%clk 0:00:15]} 55. Rb8 {[%clk 0:00:15]}  Kf6 {[%clk 0:00:14]} 56. Rf8+ {[%clk 0:00:14]}  Kg7 {[%clk 0:00:14]} 57. Rf1 {[%clk 0:00:15]}  Kh7 {[%clk 0:00:14]} 58. Rf3 {[%clk 0:00:15]}  Kg7 {[%clk 0:00:14]} 59. g4 {[%clk 0:00:15]}  hxg4+ {[%clk 0:00:13]} 60. Kxg4 {[%clk 0:00:16]}  Rd4+ {[%clk 0:00:13]} 61. Kg5 {[%clk 0:00:16]}  Rd5+ {[%clk 0:00:13]} 62. Kg4 {[%clk 0:00:17]}  Kh6 {[%clk 0:00:13]} 63. Rf8 {[%clk 0:00:16]}  Rd4+ {[%clk 0:00:13]} 64. Kg3 {[%clk 0:00:17]}  Ra4 {[%clk 0:00:13]} 65. Rh8+ {[%clk 0:00:16]}  Kg7 {[%clk 0:00:13]} 66. Rb8 {[%clk 0:00:17]}  Ra3+ {[%clk 0:00:12]} 67. Kg4 {[%clk 0:00:17]}  Ra4+ {[%clk 0:00:13]} 68. Kg5 {[%clk 0:00:17]}  Ra5+ {[%clk 0:00:13]} 69. Kg4 {[%clk 0:00:18]}  Ra4+ {[%clk 0:00:13]} 70. Kg3 {[%clk 0:00:18]}  Ra3+ {[%clk 0:00:13]} 71. Kf2 {[%clk 0:00:19]}  Ra2+ {[%clk 0:00:13]} 72. Ke3 {[%clk 0:00:19]}  Rh2 {[%clk 0:00:13]} 73. Rb4 {[%clk 0:00:18]}  Rh3+ {[%clk 0:00:12]} 74. Kf2 {[%clk 0:00:18]}  Kh6 {[%clk 0:00:12]} 75. Kg2 {[%clk 0:00:16]}  Ra3 {[%clk 0:00:12]} 76. Rb8 {[%clk 0:00:16]}  Kh5 {[%clk 0:00:11]} 77. Rh8+ {[%clk 0:00:15]}  Kg4 {[%clk 0:00:10]} 78. Rh6 {[%clk 0:00:16]}  Ra2+ {[%clk 0:00:10]} 79. Kf1 {[%clk 0:00:16]}  Kf5 {[%clk 0:00:10]} 80. Rh8 {[%clk 0:00:15]}  Kg4 {[%clk 0:00:09]} 81. Rh6 {[%clk 0:00:14]}  Kf5 {[%clk 0:00:09]} 82. Kg1 {[%clk 0:00:15]}  Rb2 {[%clk 0:00:09]} 83. h5 {[%clk 0:00:14]}  gxh5 {[%clk 0:00:08]} 84. Rxh5+ {[%clk 0:00:15]}  Kg4 {[%clk 0:00:08]} 85. Rh2 {[%clk 0:00:15]}  Rxh2 {[%clk 0:00:08]} 86. Kxh2 {[%clk 0:00:10]} 1/2-1/2


[Site "https://www.chess.com"]

[Event "Titled Tuesday Blitz August 1 Early 2023"]
[White "Topalov, Aleksandar"]
[Black "Kovalevsky, Stanislav"]
[WhiteFideId "925659"]
[BlackFideId "13508598"]
[WhiteElo "2362"]
[BlackElo "2478"]
[Result "0-1"]
[Round "8"]
[TimeControl "180+1"]
[Date "2023.08.01"]
[WhiteClock "0:00:11"]
[BlackClock "0:01:04"]
[Board "140"]

1. b3 {[%clk 0:03:00]}  d5 {[%clk 0:02:57]} 2. Bb2 {[%clk 0:02:59]}  Nf6 {[%clk 0:02:58]} 3. Nf3 {[%clk 0:02:59]}  c5 {[%clk 0:02:56]} 4. e3 {[%clk 0:02:59]}  Nc6 {[%clk 0:02:56]} 5. Bb5 {[%clk 0:02:58]}  Bg4 {[%clk 0:02:53]} 6. h3 {[%clk 0:02:58]}  Bh5 {[%clk 0:02:53]} 7. g4 {[%clk 0:02:57]}  Bg6 {[%clk 0:02:53]} 8. Ne5 {[%clk 0:02:57]}  Rc8 {[%clk 0:02:50]} 9. h4 {[%clk 0:02:56]}  h5 {[%clk 0:02:44]} 10. Nxg6 {[%clk 0:02:49]}  fxg6 {[%clk 0:02:44]} 11. g5 {[%clk 0:02:48]}  Nd7 {[%clk 0:02:40]} 12. Bd3 {[%clk 0:02:35]}  Nde5 {[%clk 0:02:32]} 13. Be2 {[%clk 0:02:29]}  Qd6 {[%clk 0:02:20]} 14. Nc3 {[%clk 0:02:21]}  a6 {[%clk 0:02:19]} 15. a3 {[%clk 0:01:54]}  Nd7 {[%clk 0:02:17]} 16. Bf3 {[%clk 0:01:50]}  e6 {[%clk 0:02:16]} 17. Qe2 {[%clk 0:01:50]}  Be7 {[%clk 0:02:14]} 18. O-O-O {[%clk 0:01:50]}  b5 {[%clk 0:02:13]} 19. d4 {[%clk 0:01:28]}  b4 {[%clk 0:01:58]} 20. axb4 {[%clk 0:01:25]}  Nxb4 {[%clk 0:01:54]} 21. e4 {[%clk 0:01:11]}  O-O {[%clk 0:01:40]} 22. e5 {[%clk 0:00:58]}  Qb6 {[%clk 0:01:37]} 23. Bxh5 {[%clk 0:00:57]}  gxh5 {[%clk 0:01:32]} 24. Qxh5 {[%clk 0:00:57]}  Rxf2 {[%clk 0:01:32]} 25. Rhf1 {[%clk 0:00:23]}  Rxc2+ {[%clk 0:01:07]} 26. Kb1 {[%clk 0:00:23]}  cxd4 {[%clk 0:01:07]} 27. g6 {[%clk 0:00:22]}  Rxb2+ {[%clk 0:01:07]} 28. Kxb2 {[%clk 0:00:21]}  dxc3+ {[%clk 0:01:08]} 29. Kc1 {[%clk 0:00:11]}  Qe3+ {[%clk 0:01:04]} 0-1


[Site "https://www.chess.com"]

[Event "Titled Tuesday Blitz August 1 Early 2023"]
[White "Nithyalakshmi, Sivanesan"]
[Black "D`Arruda, Ricardo D."]
[WhiteFideId "5706955"]
[BlackFideId "100692"]
[WhiteElo "2360"]
[BlackElo "2469"]
[Result "0-1"]
[Round "8"]
[TimeControl "180+1"]
[Date "2023.08.01"]
[WhiteClock "0:00:12"]
[BlackClock "0:00:21"]
[Board "141"]

1. e4 {[%clk 0:03:00]}  c5 {[%clk 0:02:53]} 2. Nc3 {[%clk 0:03:00]}  e6 {[%clk 0:02:51]} 3. f4 {[%clk 0:02:59]}  d6 {[%clk 0:02:51]} 4. Nf3 {[%clk 0:02:58]}  Nf6 {[%clk 0:02:51]} 5. Bc4 {[%clk 0:02:58]}  Be7 {[%clk 0:02:50]} 6. d3 {[%clk 0:02:58]}  O-O {[%clk 0:02:48]} 7. O-O {[%clk 0:02:58]}  d5 {[%clk 0:02:48]} 8. Bb3 {[%clk 0:02:58]}  Nc6 {[%clk 0:02:46]} 9. Qe1 {[%clk 0:02:58]}  c4 {[%clk 0:02:43]} 10. dxc4 {[%clk 0:02:56]}  dxc4 {[%clk 0:02:37]} 11. Bxc4 {[%clk 0:02:55]}  Nd4 {[%clk 0:02:35]} 12. Bd3 {[%clk 0:02:45]}  Nxf3+ {[%clk 0:02:33]} 13. Rxf3 {[%clk 0:02:45]}  Bd7 {[%clk 0:02:32]} 14. Kh1 {[%clk 0:02:40]}  Bc6 {[%clk 0:02:27]} 15. Rh3 {[%clk 0:02:39]}  e5 {[%clk 0:02:24]} 16. fxe5 {[%clk 0:02:34]}  Nd7 {[%clk 0:02:24]} 17. Bf4 {[%clk 0:02:28]}  Bg5 {[%clk 0:02:20]} 18. Qg3 {[%clk 0:02:11]}  Bxf4 {[%clk 0:02:20]} 19. Qxf4 {[%clk 0:02:11]}  Qc7 {[%clk 0:02:20]} 20. Qh4 {[%clk 0:02:07]}  h6 {[%clk 0:02:19]} 21. e6 {[%clk 0:02:03]}  fxe6 {[%clk 0:02:18]} 22. Rg3 {[%clk 0:02:00]}  Qf4 {[%clk 0:02:05]} 23. Qe7 {[%clk 0:01:33]}  Qf6 {[%clk 0:02:00]} 24. Qd6 {[%clk 0:01:30]}  Ne5 {[%clk 0:01:52]} 25. h3 {[%clk 0:01:20]}  Rad8 {[%clk 0:01:50]} 26. Qc7 {[%clk 0:01:14]}  Rd7 {[%clk 0:01:41]} 27. Qa5 {[%clk 0:01:13]}  b6 {[%clk 0:01:38]} 28. Qa3 {[%clk 0:01:10]}  Qh4 {[%clk 0:01:22]} 29. Kh2 {[%clk 0:00:58]}  Rf2 {[%clk 0:01:14]} 30. Nd1 {[%clk 0:00:53]}  Rf6 {[%clk 0:01:02]} 31. Qc3 {[%clk 0:00:45]}  Qf4 {[%clk 0:01:00]} 32. Ne3 {[%clk 0:00:39]}  Rg6 {[%clk 0:00:53]} 33. Nf1 {[%clk 0:00:34]}  Rxg3 {[%clk 0:00:50]} 34. Nxg3 {[%clk 0:00:33]}  Rf7 {[%clk 0:00:28]} 35. Rf1 {[%clk 0:00:31]}  Qg5 {[%clk 0:00:29]} 36. Rxf7 {[%clk 0:00:29]}  Kxf7 {[%clk 0:00:30]} 37. Qd4 {[%clk 0:00:26]}  Qf4 {[%clk 0:00:29]} 38. Qd8 {[%clk 0:00:15]}  h5 {[%clk 0:00:28]} 39. h4 {[%clk 0:00:15]}  Ng4+ {[%clk 0:00:26]} 40. Kh3 {[%clk 0:00:15]}  Nf6 {[%clk 0:00:23]} 41. e5 {[%clk 0:00:12]}  Qg4+ {[%clk 0:00:22]} 42. Kh2 {[%clk 0:00:11]}  Qxh4+ {[%clk 0:00:22]} 43. Kg1 {[%clk 0:00:12]}  Qxg3 {[%clk 0:00:22]} 44. exf6 {[%clk 0:00:12]}  Qxg2# {[%clk 0:00:21]} 0-1


[Site "https://www.chess.com"]

[Event "Titled Tuesday Blitz August 1 Early 2023"]
[White "chessmateto"]
[Black "Kaminski, Victor"]
[BlackFideId "1131630"]
[WhiteElo "2465"]
[BlackElo "2331"]
[Result "0-1"]
[Round "8"]
[TimeControl "180+1"]
[Date "2023.08.01"]
[WhiteClock "0:00:14"]
[BlackClock "0:00:13"]
[Board "143"]

1. c4 {[%clk 0:03:00]}  e6 {[%clk 0:02:53]} 2. Nc3 {[%clk 0:03:00]}  d5 {[%clk 0:02:52]} 3. e3 {[%clk 0:02:59]}  Nf6 {[%clk 0:02:52]} 4. Nf3 {[%clk 0:02:59]}  Be7 {[%clk 0:02:51]} 5. b3 {[%clk 0:02:59]}  O-O {[%clk 0:02:50]} 6. Bb2 {[%clk 0:02:59]}  c5 {[%clk 0:02:48]} 7. cxd5 {[%clk 0:02:57]}  exd5 {[%clk 0:02:49]} 8. d4 {[%clk 0:02:57]}  Nc6 {[%clk 0:02:49]} 9. Be2 {[%clk 0:02:53]}  Bg4 {[%clk 0:02:47]} 10. dxc5 {[%clk 0:02:51]}  Bxc5 {[%clk 0:02:45]} 11. Nb5 {[%clk 0:02:45]}  Bxf3 {[%clk 0:02:41]} 12. gxf3 {[%clk 0:02:45]}  Bb4+ {[%clk 0:02:41]} 13. Kf1 {[%clk 0:02:23]}  a6 {[%clk 0:02:34]} 14. Nd4 {[%clk 0:02:21]}  Qd7 {[%clk 0:02:09]} 15. h4 {[%clk 0:02:20]}  Be7 {[%clk 0:02:03]} 16. Bd3 {[%clk 0:02:05]}  g6 {[%clk 0:01:49]} 17. h5 {[%clk 0:01:55]}  Nxh5 {[%clk 0:01:46]} 18. Rxh5 {[%clk 0:01:34]}  gxh5 {[%clk 0:01:44]} 19. Nf5 {[%clk 0:01:33]}  d4 {[%clk 0:01:34]} 20. exd4 {[%clk 0:01:12]}  Bf6 {[%clk 0:01:29]} 21. Rc1 {[%clk 0:00:40]}  Kh8 {[%clk 0:01:20]} 22. f4 {[%clk 0:00:25]}  Rg8 {[%clk 0:00:45]} 23. Qxh5 {[%clk 0:00:24]}  Qd5 {[%clk 0:00:41]} 24. f3 {[%clk 0:00:17]}  Rg6 {[%clk 0:00:21]} 25. Be4 {[%clk 0:00:16]}  Qb5+ {[%clk 0:00:20]} 26. Kf2 {[%clk 0:00:16]}  Bxd4+ {[%clk 0:00:13]} 27. Bxd4+ {[%clk 0:00:15]}  Nxd4 {[%clk 0:00:14]} 28. Rh1 {[%clk 0:00:14]}  Qe2# {[%clk 0:00:13]} 0-1


[Site "https://www.chess.com"]